{"text_format":"1","workbook":"xlsx","n_sheets":3,"sheets":["Div.10","Div.22","Bill-Summary "],"not_rendered":{"charts":0,"images":1,"macros":1,"external_links":0,"defined_names":7,"comments":0,"pivot_tables":0},"unopened":[],"bounds":{"document_bytes":16777216,"sheet_cells":100000,"rows_first":2000,"rows_last":500,"rows_between":2000,"halvings":0,"cell_chars":16384,"cell_head_chars":4096},"cells_cut":0,"cells_raw":0,"read":"whole","date_system":"1900"}

{"sheet":"Div.10","index":0,"n_rows":116,"n_cols":9,"rows_kept":116,"cut":false,"hidden":false,"merged":[[5,0,6,0],[5,1,6,1],[5,7,6,7],[5,8,6,8]]}
[]
[]
[]
[null,null,null,"BILL No 02"]
[null,null,null,"جدول رقم - 02"]
["ITEM","DESCRIPTION","الإجمالي كتابة","الإجمالي رقمًا","السعر","الوحدة","الكمية","الـــوصــــف","البند"]
[null,null,"Total in words (SR)","Total in figures","RATE","UNIT","QTY"]
[]
["10","DIVISION 10 -SPECIALTIES",null,null,null,null,null,"القسم العاشر - الأعمال الخاصة",{"$f":"A9","v":"10"}]
[null,null,null,null,null,null,null,null,0]
[null,"Price of all items includes supplying and",null,null,null,"Note",null,"سعر جميع البنود يشمل التوريد والتركيب"]
[null,"installation"]
[]
[null,"TOILET AND BATH ACCESSORIES",null,null,null,null,null,"لوازم الحمامات ودورات المياه",0]
[null,null,null,null,null,null,null,null,0]
["10.1","Supply and installation of following toilet and",null,null,null,null,null,"توريد وتركيب لوازم الحمامات ودورات المياه التالية حسب","10.1"]
[null,"bath accessories as per schedule from specified",null,null,null,null,null,"جدول الاختيار  من المورد المذكور في وثائق المشروع أو",0]
[null,"manufacturers  mentioned in project documents",null,null,null,null,null,"المعتمد مما يماثلها شاملا ذلك مواد التثبيت والتزيين حسب",0]
[null,"or approved equal including fixings and trims",null,null,null,null,null,"الموضح بالمخططات والمواصفات لملائمة المواقع حسب",0]
[null,"as shown on drawings and specification  to suit",null,null,null,null,null,"المطلوب"]
[null,"locations as required",null,null,null,null,null,null,0]
["10.1.1","Ref. (SW03), illuminated mirror",null,{"$f":"G22*E22","v":31400},200,"No","157","مرجع (SW03) مرآة مضيئة ماركة:  Geesa، موديل","10.1.1"]
[null,", brand: Geesa, model: Genova  illuminated mirror",null,null,null,null,null,":Genova  illuminated mirror",0]
[null,null,null,null,null,null,null,null,0]
["10.1.2","Ref. (SW06), Toilet paper holder, brand: Grohe,",null,{"$f":"G25*E25","v":0},null,"No","159","مرجع (SW06) حامل ورق تواليت ، ماركة:  Grohe ،","10.1.2"]
[null,"model: Essentials cube",null,null,null,null,null,"موديل Essentials cube",0]
[null,null,null,null,null,null,null,null,0]
["10.1.3","Ref. (SW07), Reserve Toilet paper holder, brand:",null,{"$f":"G28*E28","v":0},null,"No","182","مرجع (SW07) حامل ورق تواليت حافظ، ماركة: ","10.1.3"]
[null,"Grohe, model: Selection Cube ",null,null,null,null,null,"Grohe ، موديل Selection Cube",0]
[null,null,null,null,null,null,null,null,0]
["10.1.4","Ref. (SW08), towel rail, brand: Grohe, model:",null,{"$f":"G31*E31","v":16100},100,"No","161","مرجع (SW08)  قضيب منشفة، ماركة: ","10.1.4"]
[null,"Selection Cube 600 mm",null,null,null,null,null,"Grohe ، موديل Selection Cube 600 mm",0]
[null,null,null,null,null,null,null,null,0]
[]
[null,"To Collection",null,{"$f":"SUM(Div.10!D8:D34)","v":47500},null,null,null,"المجموع المرحل",0]
[null,null,null,null,null,null,null,null,0]
[null,null,null,null,null,null,null,null,0]
[null,"TOILET AND BATH ACCESSORIES",null,null,null,null,null,"لوازم الحمامات ودورات المياه",0]
[null,null,null,null,null,null,null,null,0]
["10.1.5","Ref. (SW09), Robe Hooks, brand: Grohe, model:",null,{"$f":"G40*E40","v":112200},600,"No","187","مرجع (SW09) خطاف تعليق الملابس ، ماركة: ","10.1.5"]
[null,"Selection Cube ",null,null,null,null,null,"Grohe ، موديل Selection Cube",0]
[]
["10.1.6","Ref. (SW10), Grip bar, brand: Kohler, model:",null,{"$f":"G43*E43","v":0},null,"No","159","مرجع (SW10) مسند، ماركة: Kohler ، موديل","10.1.6"]
[null,"GROHE StarLight",null,null,null,null,null,"GROHE StarLight",0]
[null,null,null,null,null,null,null,null,0]
["10.1.7","Ref. (SW14), Trash Bin, brand: Geesa, model:",null,{"$f":"G46*E46","v":90500},500,"No","181","مرجع (SW14) سلة قمامة، ماركة: ","10.1.7"]
[null,"Geesa Pedal Bin 5 L",null,null,null,null,null,"Geesa ، موديل Geesa Pedal Bin 5 L",0]
[null,null,null,null,null,null,null,null,0]
["10.1.8","Ref. (SW15), Tower ring, brand: Grohe, model:",null,{"$f":"G49*E49","v":0},null,"No","159","مرجع (SW15) حامل منشفة، ماركة: ","10.1.8"]
[null,"Essentials Cube",null,null,null,null,null,"Grohe ، موديل: Essentials Cube",0]
[null,null,null,null,null,null,null,null,0]
["10.1.9","Ref. (SW23), Toilet paper holder, brand: Grohe,",null,{"$f":"G52*E52","v":10000},400,"No","25","مرجع (SW23) حامل ورق تواليت ، ماركة:  Grohe ،","10.1.9"]
[null,"model: Selection Cube",null,null,null,null,null,"موديل Selection Cube",0]
[null,null,null,null,null,null,null,null,0]
["10.1.10","Ref. (SW27), Grip bar , brand: Grohe, model:",null,{"$f":"G55*E55","v":1500},100,"No","15","مرجع (SW27)  مسند ، ماركة:  Grohe ،","10.1.10"]
[null,"Essentials",null,null,null,null,null,"موديل Essentials",0]
[null,null,null,null,null,null,null,null,0]
["10.1.11","Ref. (SW28), Hinged Arm Grab Bar Rail , brand:",null,{"$f":"G58*E58","v":0},null,"No","32","مرجع (SW28) مسند بذراع مفصلية ، ماركة:  Vitra ،","10.1.11"]
[null,"Vitra, model: Access",null,null,null,null,null,"موديل Access",0]
[null,null,null,null,null,null,null,null,0]
[null,null,null,null,null,null,null,null,0]
[null,"To Collection",null,{"$f":"SUM(Div.10!D38:D61)","v":214200},null,null,null,"المجموع المرحل",0]
[null,null,null,null,null,null,null,null,0]
[null,null,null,null,null,null,null,null,0]
[null,"TOILET AND BATH ACCESSORIES",null,null,null,null,null,"لوازم الحمامات ودورات المياه",0]
[null,null,null,null,null,null,null,null,0]
["10.1.12","Ref. (SW29), Recessed Paper Towel Dispenser",null,{"$f":"G67*E67","v":50},50,"No","1","مرجع (SW29) منشفة ورقية ومجفف أيدي وسلة مخلفات ، ","10.1.12"]
[null,"/Automatic Hand Dryer /Waste Receptacle  ,",null,null,null,null,null,"موديل TrimLineSeries",0]
[null,", model: TrimLineSeries",null,null,null,null,null,null,0]
[null,null,null,null,null,null,null,null,0]
["10.1.13","Ref. (SW33), Hinged Arm Shower Seat , brand:",null,{"$f":"G71*E71","v":120},60,"No","2","مرجع (SW33) مقعد دش بذراع مفصلية، ماركة:  Vitra","10.1.13"]
[null,"Vitra",null,null,null,null,null,null,0]
[null,null,null,null,null,null,null,null,{"$f":"A73","v":0}]
["10.1.14","Ref. (SW34), Hand Dryer , brand: Bobric",null,{"$f":"G74*E74","v":20},10,"No","2","مرجع (SW34) مجفف أيدي ، ماركة:  Bobric ","10.1.14"]
[null,null,null,null,null,null,null,null,0]
["10.2","OPERABLE PARTITION",null,null,null,null,null,"قواطيع متحركة","10.2"]
[null,null,null,null,null,null,null,null,0]
["10.2.1","Operable partition comprising individual wooden",null,{"$f":"G78*E78","v":120},60,"No",2,"قواطع متحركة تتكون من ألواح خشبية مفردة بكسوة مرجع","10.2.1"]
[null,"panels Ref.WD01, Wood Veneer, Spec : 10 mm",null,null,null,null,null,"WD01، قشرة خشب، المواصفات MDF سمك 10 مم مع",0]
[null,"thick, MDF in wood veneer semi-gloss finish Code ",null,null,null,null,null,"قشرة خشب  بتشطيب نصف لامع ، الكود American",0]
[null,"American walnut veneer ALPIlignum10.19 by Alpi ,",null,null,null,null,null,"walnut veneer ALPIlignum10.19 من  Alpi ،",0]
[null,"Size : Refer  to dwg.Color : Smoked Walnut, By ",null,null,null,null,null,"المقاس : ارجع غلى المخططات ، اللون Smoked",0]
[null,"Alpi Showroom",null,null,null,null,null,"Walnut من Alpi Showroom",0]
[null,"size 11100x 3000mm height",null,null,null,null,null,"مقاس  11100 ×3000 مم ارتفاع"]
[null,"to suit meeting rooms",null,null,null,null,null,"لتناسب غرف الاجتماعات"]
[]
[]
[]
[null,"To Collection",null,{"$f":"SUM(Div.10!D65:D88)","v":310},null,null,null,"المجموع المرحل",{"$f":"A89","v":0}]
[]
[]
[null,"Collection",null,null,null,null,null,"المجموع"]
[]
[null,"Sheet -1",null,47500,null,null,null,"صفحة - 1 "]
[]
[null,"Sheet -2",null,214200,null,null,null,"صفحة - 2"]
[]
[null,"Sheet -3",null,310,null,null,null,"صفحة - 3"]
[]
[]
[]
[]
[]
[]
[]
[]
[]
[]
[]
[]
[]
[]
[]
[]
[]
[null,"To Bill Summary",null,{"$f":"SUM(D92:D115)","v":262010},null,null,null,"المجموع المرحل إلى ملخص جدول الكميات"]

{"sheet":"Div.22","index":1,"n_rows":114,"n_cols":9,"rows_kept":114,"cut":false,"hidden":false,"merged":[[5,0,6,0],[5,1,6,1],[5,7,6,7],[5,8,6,8]]}
[]
[]
[]
[null,null,null,"BILL No 02"]
[null,null,null,"جدول رقم - 02"]
["ITEM","DESCRIPTION","الإجمالي كتابة","الإجمالي رقمًا","السعر","الوحدة","الكمية","الـــوصــــف","البند"]
[null,null,"Total in words (SR) ","Total in figures","RATE","UNIT","QTY"]
[]
["22","DIVISION 22: MECHANICAL WORK -",null,null,null,null,null,"القسم إثنين وعشرون: الأعمال الميكانيكية -",{"$f":"A9","v":"22"}]
[null,"PLUMBING",null,null,null,null,null,"الأعمال الصحية",0]
[null,null,null,null,null,null,null,null,0]
[null,"Price of all items includes supplying and",null,null,null,"Note",null,"سعر جميع البنود يشمل التوريد والتركيب"]
[null,"installation"]
[]
["22.1","Supply, install sanitary wares and fixtures from",null,null,null,null,null,"توريد وتركيب الأدوات والأجهزة الصحية من المورد المذكور","22.1"]
[null,"specified manufacturers  mentioned in project",null,null,null,null,null,"في وثائق المشروع أو المعتمد مما يماثلها  بما في ذلك",0]
[null,"documents or approved equal including traps,",null,null,null,null,null,"المصائد والأنابيب والمحابس والمواسير القصيرة لإمداد المياه",0]
[null,"spouts, valves and short lengths of water supply",null,null,null,null,null,"للملحقات والتركيبات اللازمة وما شابة حسب المخططات",0]
[null,"pipes, all fittings, accessories, trims and the like",null,null,null,null,null,"والمواصفات ",0]
[null,"as on drawing and as per specification",null,null,null,null,null,null,0]
[]
["22.1.1","Ref. (SW01), Faucet (Single-lever basin mixer",null,{"$f":"G22*E22","v":8250},50,"No",165,"مرجع (SW01) خلاط حوض Single-lever basin",{"$f":"A22","v":"22.1.1"}]
[null,"1/2\" S-size) , brand: Grohe, model: lineare",null,null,null,null,null,"mixer 1/2\" S-size ماركة  Grohe، موديل : lineare",0]
[null,null,null,null,null,null,null,null,0]
["22.1.2","Ref. (SW02), Semi-recessed basin , brand:",null,{"$f":"G25*E25","v":7650},90,"No",85,"مرجع (SW02)  حوض semi-recessed ماركة ","22.1.2"]
[null,"Grohe, model: Eurocube",null,null,null,null,null,"Grohe، موديل : Eurocube",0]
[null,null,null,null,null,null,null,null,0]
["22.1.3","Ref. (SW04), Toilet set ",null,{"$f":"G28*E28","v":15900},100,"No",159,"مرجع (SW04) مجموعة مرحاض ","22.1.3"]
[null,null,null,null,null,null,null,null,0]
["22.1.4","Ref. (SW05), Wall holder spray, brand: Grohe,",null,{"$f":"G30*E30","v":46000},250,"No",184,"مرجع (SW05)  مجموعة رشاش علي الحائط ماركة ","22.1.4"]
[null,"model: Tempesta -F Trigger spray 30",null,null,null,null,null,"Grohe، موديل : Tempesta -F Trigger spray 30",0]
[null,null,null,null,null,null,null,null,0]
["22.1.5","Ref. (SW11), shower set, brand: Grohe",null,{"$f":"G33*E33","v":6450},50,"No",129,"مرجع (SW11)  مجموعة دش ماركة Grohe ","22.1.5"]
[]
[]
[null,"To Collection",null,null,null,null,null,"المجموع المرحل",0]
[null,null,null,null,null,null,null,null,0]
[null,null,null,null,null,null,null,null,0]
["22.1","Sanitary wares and fixtures",null,null,null,null,null,"الأدوات والأجهزة الصحية ","22.1"]
[null,null,null,null,null,null,null,null,0]
["22.1.6","Ref. (SW12), Floor drain, brand: Aquazone UK, ",null,{"$f":"G41*E41","v":0},null,"No",190,"مرجع (SW12)  بالوعة أرضية  ماركة Aquazone","22.1.6"]
[null,"model: Aquadrain",null,null,null,null,null,"UK، موديل :Aquadrain",0]
[null,null,null,null,null,null,null,null,0]
["22.1.7","Ref. (SW13), linear Floor drain, brand: Nicoll, ",null,{"$f":"G44*E44","v":0},null,"No",129,"مرجع (SW13)  بالوعة أرضية طولية ماركة Nicoll ،","22.1.7"]
[null,"model: Docia",null,null,null,null,null,"موديل :Docia",0]
[null,null,null,null,null,null,null,null,0]
["22.1.8","Ref. (SW16), bathhub (750x1500mm drop in bath",null,{"$f":"G47*E47","v":0},null,"No",30,"مرجع (SW16)  بانيو مقاس 750 × 1500 مم  ماركة","22.1.8"]
[null,", brand: Vitra, model: Rectangular bathhub",null,null,null,null,null,"Vitra ، موديل :Rectangular bathhub",0]
[null,null,null,null,null,null,null,null,0]
["22.1.9","Ref. (SW17), Rain Shower , brand: Grohe, model:",null,{"$f":"G50*E50","v":0},null,"No",30,"مرجع (SW17)  Rain Shower  ماركة Grohe ، موديل","22.1.9"]
[null,"Eurocube",null,null,null,null,null,":Eurocube",0]
[null,null,null,null,null,null,null,null,0]
["22.1.10","Ref. (SW19), Faucet (infra-red electronic basin",null,{"$f":"G53*E53","v":0},null,"No",16,"مرجع (SW19) خلاط يعمل بالأشعة  تحت الحمراء مع جهاز","22.1.10"]
[null,"mixer 1/2\"wall mounted , brand: Grohe,",null,null,null,null,null,"خلط  1/2 بوصة معلق بالحائط ماركة  Grohe، موديل :",0]
[null,"model: Allure E",null,null,null,null,null,"Allure E",0]
[null,null,null,null,null,null,null,null,0]
["22.1.11","Ref. (SW20), Freestanding washbasin,",null,{"$f":"G57*E57","v":0},null,"No",16,"مرجع (SW20) Freestanding washbasin,","22.1.11"]
[null,"brand: RIFRA, model: SMOOTH | Washbasin",null,null,null,null,null,"ماركة : RIFRA,  موديل SMOOTH | Washbasin",0]
[null,null,null,null,null,null,null,null,0]
["22.1.12","Ref. (SW21),  Toilet set,",null,{"$f":"G60*E60","v":0},null,"No",25,"مرجع (SW21) مجموعة مرحاض ","22.1.12"]
[null,null,null,null,null,null,null,null,0]
[null,"To Collection",null,null,null,null,null,"المجموع المرحل",0]
[null,null,null,null,null,null,null,null,0]
[null,null,null,null,null,null,null,null,0]
["22.1","Sanitary wares and fixtures",null,null,null,null,null,"الأدوات والأجهزة الصحية ","22.1"]
[null,null,null,null,null,null,null,null,0]
[]
["22.1.13","Ref. (SW22),  Urinal set,",null,{"$f":"G68*E68","v":0},null,"No","6","مرجع (SW22) مجموعة مبولة ",{"$f":"A68","v":"22.1.13"}]
[null,null,null,null,null,null,null,null,0]
["22.1.14","Ref. (SW30),  hrome wall mounted SL 2 hole",null,{"$f":"G70*E70","v":0},null,"No","3","مرجع (SW30) خلاط مثبت علي الحائط  بفتحتين ","22.1.14"]
[null,"basin mixer, brand: Grohe, model: lineare",null,null,null,null,null,"للخلاطات ماركة  Grohe، موديل : lineare",0]
[null,null,null,null,null,null,null,null,0]
["22.1.15","Ref. (SW31), wash basin (undercounter basin, 48",null,{"$f":"G73*E73","v":0},null,"No","8","مرجع (SW31) حوض للغسل undercounter basin,",{"$f":"A73","v":"22.1.15"}]
[null,"cm without tap hole, with side holes brand: Vitra,",null,null,null,null,null,"48cm without tap hole, with side holes ماركة",0]
[null,"model: S50",null,null,null,null,null,"Vitra موديل : S50",0]
[null,null,null,null,null,null,null,null,0]
["22.1.16","Ref. (SW32),  ",null,{"$f":"G77*E77","v":0},null,"No","74","مرجع (SW32) ","22.1.16"]
[]
["22.1.17","Ref. (SW35),  ",null,{"$f":"G79*E79","v":0},null,"No","3","مرجع (SW35) ","22.1.17"]
[]
["22.1.18","Ref. (SW36),  ",null,{"$f":"G81*E81","v":0},null,"No","3","مرجع (SW36) ","22.1.18"]
[]
["22.1.19","Sink 420mm x 420mm",null,{"$f":"G83*E83","v":0},null,"No","58","حوض بابعاد 420مم × 420 مم","22.1.19"]
[]
[]
[]
[]
[null,"To Collection",null,null,null,null,null,"المجموع المرحل"]
[]
[]
[null,"Collection",null,null,null,null,null,"المجموع"]
[]
[null,"Sheet -1",null,null,null,null,null,"صفحة - 1 "]
[]
[null,"Sheet -2",null,null,null,null,null,"صفحة - 2"]
[]
[null,"Sheet -3",null,null,null,null,null,"صفحة - 3"]
[]
[]
[]
[]
[]
[]
[]
[]
[]
[]
[]
[]
[]
[]
[]
[]
[null,"To Bill Summary",null,null,null,null,null,"المجموع المرحل إلى ملخص جدول الكميات"]

{"sheet":"Bill-Summary ","index":2,"n_rows":34,"n_cols":7,"rows_kept":34,"cut":false,"hidden":false,"merged":[[5,6,6,6],[8,1,8,2],[5,0,6,0],[5,1,6,1],[5,2,6,2],[5,4,6,4]]}
[]
[]
[]
[null,null,null,"BILL No 02"]
[null,null,null,"جدول رقم - 02"]
["ITEM",null,"DESCRIPTION","الإجمالي ر.س","الـــوصــــف",null,"البند"]
[null,null,null,"TOTAL S.R"]
[]
[null,"BILL SUMMARY",null,null,null,"ملخص الجدول"]
[]
[null,"DIVISION 6","WOOD, PLASTICS, AND COMPOSITES",null," الخشب واللدائن والمواد المركبة ","القسم السادس"]
[]
[null,"DIVISION 8 ","OPENINGS",{"$f":"F13*H13","v":{"$error":"#VALUE!"}}," أعمال الفتحات","القسم الثامن"]
[]
[null,"DIVISION 9 ","FINISHES",{"$f":"F15*H15","v":{"$error":"#VALUE!"}},"التشطيب","القسم التاسع"]
[]
[null,"DIVISION 10"," SPECIALITIES ",{"$f":"Div.10!D116","v":262010},"الأعمال الخاصة","القسم العاشر"]
[]
[null,"DIVISION 22","MECHANICAL WORK - PLUMBING",{"$f":"F19*H19","v":{"$error":"#VALUE!"}},"الأعمال الميكانيكية - الأعمال الصحية ","القسم إثنين وعشرون"]
[]
[]
[]
[]
[]
[]
[]
[]
[]
[]
[null,null,"TOTAL             (SR)",{"$f":"F30*H30","v":0},"إجمالي الأعمال                          ريال سعودي"]
[]
[null,null,"VAT 5%            (SR)",{"$f":"F32*H32","v":0},"ضريبة القيمة المضافة 5%              ريال سعودي"]
[]
[null,null,"To Tender Summary        (SR)",{"$f":"F34*H34","v":0},"إلى ملخص العطاء                      ريال سعودي"]